fUSD/lending_fUSD_20260601
["ID","MTS","AMOUNT","RATE_DAILY","PERIOD"]
[423644032,1780272632000,-829.35002497,7.602e-05,2]
[423644038,1780272632000,-810.39345296,7.602e-05,2]
[423644039,1780272632000,-810.39345296,7.602e-05,2]
[423644040,1780272632000,-810.39345296,7.602e-05,2]
[423644043,1780272632000,-810.39345296,7.602e-05,2]
[423644037,1780272632000,-810.39345296,7.602e-05,2]
[423644042,1780272632000,-810.39345296,7.602e-05,2]
[423644045,1780272632000,-810.39345296,7.602e-05,2]
[423644047,1780272632000,-810.39345296,7.602e-05,2]
[423644116,1780272633000,-191.2,9.573e-05,2]
[423644126,1780272633000,-711.18919613,0.00010203,2]
[423644112,1780272633000,-433.0,9.078e-05,2]
[423644111,1780272633000,-191.2,9.069e-05,2]
[423644110,1780272633000,-500.0,9.041e-05,2]
[423644101,1780272633000,-500.0,8.219e-05,2]
[423644106,1780272633000,-500.0,8.493e-05,2]
[423644104,1780272633000,-2351.0,8.465e-05,2]
[423644105,1780272633000,-150.0,8.493e-05,2]
[423644102,1780272633000,-4513.16,8.219e-05,2]
[423644113,1780272633000,-2000.0,9.247e-05,2]
[423644107,1780272633000,-250.0,8.678e-05,2]
[423644117,1780272633000,-500.0,9.589e-05,2]
[423644122,1780272633000,-821.87272388,0.0001,2]
[423644115,1780272633000,-500.0,9.315e-05,2]
[423644120,1780272633000,-736.0,9.985e-05,2]
[423644119,1780272633000,-500.0,9.863e-05,2]
[423644118,1780272633000,-1600.0,9.631e-05,2]
[423644121,1780272633000,-163.57,0.0001,2]
[423644132,1780272633000,-164.49563161,0.00010246,2]
[423644124,1780272633000,-191.2,0.00010077,2]
[423644128,1780272633000,-257.14795689,0.00010246,2]
[423644131,1780272633000,-195.58455859,0.00010246,2]
[423644123,1780272633000,-4000.0,0.00010027,2]
[423644130,1780272633000,-169.48034773,0.00010246,2]
[423644114,1780272633000,-3292.0,9.311e-05,2]
[423644100,1780272633000,-2000.0,8.219e-05,2]
[423644077,1780272633000,-500.0,7.602e-05,2]
[423644098,1780272633000,-500.0,8.219e-05,2]
[423644127,1780272633000,-4609.0,0.00010243,2]
[423644086,1780272633000,-28500.978019,7.945e-05,2]
[423644078,1780272633000,-442.43192393,7.602e-05,2]
[423644087,1780272633000,-12800.0,8e-05,2]
[423644076,1780272633000,-500.0,7.602e-05,2]
[423644079,1780272633000,-165.31,7.678e-05,2]
[423644084,1780272633000,-1600.0,7.88e-05,2]
[423644083,1780272633000,-6400.0,7.8e-05,2]
[423644081,1780272633000,-1680.0,7.695e-05,2]
[423644082,1780272633000,-3200.0,7.7e-05,2]
[423644085,1780272633000,-9600.0,7.9e-05,2]
[423644080,1780272633000,-150.99,7.678e-05,2]
[423644090,1780272633000,-27107.33,8.192e-05,2]
[423644088,1780272633000,-200.0,8.155e-05,2]
[423644089,1780272633000,-12435.77566,8.178e-05,2]
[423644092,1780272633000,-500.0,8.219e-05,2]
[423644094,1780272633000,-500.0,8.219e-05,2]
[423644095,1780272633000,-500.0,8.219e-05,2]
[423644093,1780272633000,-500.0,8.219e-05,2]
[423644091,1780272633000,-500.0,8.219e-05,2]
[423644096,1780272633000,-500.0,8.219e-05,2]
[423644097,1780272633000,-642.69036653,8.219e-05,2]
[423644099,1780272633000,-300.0,8.219e-05,2]
[423644109,1780272633000,-500.0,8.767e-05,2]
[423644108,1780272633000,-1600.0,8.755e-05,2]
[423644103,1780272633000,-255.0,8.252e-05,2]
[423644129,1780272633000,-375.39461081,0.00010246,2]
[423644162,1780272633000,-191.2,0.00011084,2]
[423644134,1780272633000,-4000.0,0.00010278,2]
[423644164,1780272633000,-500.0,0.00011098,15]
[423644165,1780272633000,-500.0,0.00011098,16]
[423644166,1780272633000,-500.0,0.00011098,17]
[423644169,1780272633000,-6453.0,0.00011267,2]
[423644170,1780272633000,-2000.0,0.00011301,2]
[423644179,1780272633000,-3619.57,0.00012087,2]
[423644168,1780272633000,-66244.98348943,0.00011099,2]
[423644171,1780272633000,-4513.16,0.00011507,2]
[423644173,1780272633000,-711.18919613,0.00011734,2]
[423644172,1780272633000,-191.2,0.00011588,2]
[423644178,1780272633000,-40526.3,0.00012055,2]
[423644174,1780272633000,-257.14795689,0.00011782,2]
[423644176,1780272633000,-195.58455859,0.00011783,2]
[423644175,1780272633000,-171.0,0.00011783,2]
[423644177,1780272633000,-164.49563161,0.00011783,2]
[423644180,1780272633000,-16975.86537621,0.00012087,2]
[423644189,1780272633000,-11104.3220917,0.0001252,2]
[423644181,1780272633000,-10480.60462379,0.00012087,2]
[423644187,1780272633000,-442.02,0.00012329,2]
[423644183,1780272633000,-191.2,0.00012092,2]
[423644185,1780272633000,-637.04079501,0.00012277,2]
[423644182,1780272633000,-21390.45,0.00012087,2]
[423644188,1780272633000,-7063.0,0.00012394,2]
[423644186,1780272633000,-2000.0,0.00012329,2]
[423644125,1780272633000,-500.0,0.00010137,2]
[423644163,1780272633000,-500.0,0.00011098,14]
[423644159,1780272633000,-1252.0,0.00010983,2]
[423644184,1780272633000,-166.66,0.00012228,2]
[423644158,1780272633000,-500.0,0.00010959,2]
[423644157,1780272633000,-150.0,0.00010959,2]
[423644133,1780272633000,-2000.0,0.00010274,2]
[423644135,1780272633000,-500.0,0.00010411,2]
[423644137,1780272633000,-4000.0,0.00010529,2]
[423644139,1780272633000,-500.0,0.00010685,2]
[423644141,1780272633000,-4000.0,0.00010779,2]
[423644138,1780272633000,-191.2,0.00010581,2]
[423644142,1780272633000,-11104.32209171,0.000109,2]
[423644140,1780272633000,-243.896559,0.0001074,2]
[423644143,1780272633000,-500.0,0.00010958,2]
[423644145,1780272633000,-500.0,0.00010958,4]
[423644144,1780272633000,-500.0,0.00010958,3]
[423644146,1780272633000,-500.0,0.00010958,5]
[423644136,1780272633000,-1600.0,0.00010506,2]
[423644148,1780272633000,-500.0,0.00010958,7]
[423644161,1780272633000,-4000.0,0.0001103,2]
[423644155,1780272633000,-4547.83,0.00010959,2]
[423644160,1780272633000,-150.0,0.00010989,2]
[423644156,1780272633000,-150.0,0.00010959,2]
[423644152,1780272633000,-500.0,0.00010958,11]
[423644167,1780272633000,-66244.98348952,0.00011099,2]
[423644153,1780272633000,-500.0,0.00010958,12]
[423644154,1780272633000,-500.0,0.00010958,13]
[423644150,1780272633000,-500.0,0.00010958,9]
[423644149,1780272633000,-500.0,0.00010958,8]
[423644151,1780272633000,-500.0,0.00010958,10]
[423644147,1780272633000,-500.0,0.00010958,6]
[423644221,1780272634000,-500.0,0.00013698,2]
[423644219,1780272634000,-500.0,0.00013698,2]
[423644222,1780272634000,-500.0,0.00013698,2]
[423644217,1780272634000,-410.76992817,0.00013698,2]
[423644213,1780272634000,-500.0,0.00013698,2]
[423644220,1780272634000,-500.0,0.00013698,2]
[423644224,1780272634000,-500.0,0.00013698,2]
[423644223,1780272634000,-500.0,0.00013698,2]
[423644226,1780272634000,-500.0,0.00013698,2]
[423644232,1780272634000,-590.58,0.00013698,2]
[423644227,1780272634000,-500.0,0.00013698,2]
[423644228,1780272634000,-207.9347959,0.00013698,2]
[423644231,1780272634000,-590.58,0.00013698,2]
[423644229,1780272634000,-590.58,0.00013698,2]
[423644230,1780272634000,-590.58,0.00013698,2]
[423644234,1780272634000,-590.58,0.00013698,2]
[423644235,1780272634000,-590.58,0.00013698,2]
[423644233,1780272634000,-590.58,0.00013698,2]
[423644236,1780272634000,-590.58,0.00013698,2]
[423644237,1780272634000,-590.58,0.00013698,2]
[423644218,1780272634000,-500.0,0.00013698,2]
[423644238,1780272634000,-590.58,0.00013698,2]
[423644225,1780272634000,-500.0,0.00013698,2]
[423644216,1780272634000,-89.23007183,0.00013698,2]
[423644202,1780272634000,-500.0,0.00013698,2]
[423644215,1780272634000,-500.0,0.00013698,2]
[423644242,1780272634000,-590.58,0.00013698,2]
[423644190,1780272634000,-191.2,0.00012596,2]
[423644191,1780272634000,-166.66,0.00012632,2]
[423644192,1780272634000,-166.66,0.00013036,2]
[423644193,1780272634000,-191.2,0.000131,2]
[423644195,1780272634000,-166.66,0.00013439,2]
[423644194,1780272634000,-236.12847992,0.00013343,2]
[423644197,1780272634000,-191.2,0.00013604,2]
[423644198,1780272634000,-500.0,0.00013698,2]
[423644196,1780272634000,-3414.86997931,0.00013599,2]
[423644201,1780272634000,-500.0,0.00013698,2]
[423644199,1780272634000,-500.0,0.00013698,2]
[423644200,1780272634000,-500.0,0.00013698,2]
[423644204,1780272634000,-500.0,0.00013698,2]
[423644207,1780272634000,-500.0,0.00013698,2]
[423644208,1780272634000,-500.0,0.00013698,2]
[423644209,1780272634000,-500.0,0.00013698,2]
[423644203,1780272634000,-500.0,0.00013698,2]
[423644205,1780272634000,-500.0,0.00013698,2]
[423644206,1780272634000,-500.0,0.00013698,2]
[423644210,1780272634000,-500.0,0.00013698,2]
[423644211,1780272634000,-500.0,0.00013698,2]
[423644212,1780272634000,-500.0,0.00013698,2]
[423644214,1780272634000,-500.0,0.00013698,2]
[423644241,1780272634000,-590.58,0.00013698,2]
[423644249,1780272634000,-590.58,0.00013698,2]
[423644240,1780272634000,-590.58,0.00013698,2]
[423644272,1780272634000,-500.0,0.00013698,2]
[423644267,1780272634000,-500.0,0.00013698,2]
[423644273,1780272634000,-500.0,0.00013698,2]
[423644271,1780272634000,-500.0,0.00013698,2]
[423644276,1780272634000,-500.0,0.00013698,2]
[423644274,1780272634000,-500.0,0.00013698,2]
[423644278,1780272634000,-500.0,0.00013698,2]
[423644281,1780272634000,-500.0,0.00013698,2]
[423644284,1780272634000,-500.0,0.00013698,2]
[423644279,1780272634000,-500.0,0.00013698,2]
[423644275,1780272634000,-500.0,0.00013698,2]
[423644283,1780272634000,-500.0,0.00013698,2]
[423644277,1780272634000,-500.0,0.00013698,2]
[423644285,1780272634000,-500.0,0.00013698,2]
[423644282,1780272634000,-500.0,0.00013698,2]
[423644239,1780272634000,-590.58,0.00013698,2]
[423644288,1780272634000,-500.0,0.00013698,2]
[423644290,1780272634000,-500.0,0.00013698,2]
[423644287,1780272634000,-500.0,0.00013698,2]
[423644289,1780272634000,-507.08768216,0.00013698,2]
[423644291,1780272634000,-500.0,0.00013698,2]
[423644292,1780272634000,-500.0,0.00013698,2]
[423644280,1780272634000,-500.0,0.00013698,2]
[423644270,1780272634000,-500.0,0.00013698,2]
[423644286,1780272634000,-500.0,0.00013698,2]
[423644268,1780272634000,-500.0,0.00013698,2]
[423644269,1780272634000,-500.0,0.00013698,2]
[423644243,1780272634000,-590.58,0.00013698,2]
[423644244,1780272634000,-590.58,0.00013698,2]
[423644246,1780272634000,-590.58,0.00013698,2]
[423644248,1780272634000,-590.58,0.00013698,2]
[423644255,1780272634000,-500.0,0.00013698,2]
[423644245,1780272634000,-590.58,0.00013698,2]
[423644253,1780272634000,-500.0,0.00013698,2]
[423644252,1780272634000,-590.72292401,0.00013698,2]
[423644251,1780272634000,-590.58,0.00013698,2]
[423644254,1780272634000,-500.0,0.00013698,2]
[423644247,1780272634000,-590.58,0.00013698,2]
[423644257,1780272634000,-500.0,0.00013698,2]
[423644250,1780272634000,-590.58,0.00013698,2]
[423644262,1780272634000,-500.0,0.00013698,2]
[423644266,1780272634000,-500.0,0.00013698,2]
[423644264,1780272634000,-500.0,0.00013698,2]
[423644260,1780272634000,-500.0,0.00013698,2]
[423644259,1780272634000,-521.95095535,0.00013698,2]
[423644263,1780272634000,-500.0,0.00013698,2]
[423644265,1780272634000,-500.0,0.00013698,2]
[423644258,1780272634000,-500.0,0.00013698,2]
[423644256,1780272634000,-500.0,0.00013698,2]
[423644261,1780272634000,-500.0,0.00013698,2]
[423644313,1780272635000,-500.0,0.00013698,2]
[423644315,1780272635000,-500.0,0.00013698,2]
[423644316,1780272635000,-500.0,0.00013698,2]
[423644317,1780272635000,-500.0,0.00013698,2]
[423644314,1780272635000,-500.0,0.00013698,2]
[423644319,1780272635000,-500.0,0.00013698,2]
[423644318,1780272635000,-500.0,0.00013698,2]
[423644325,1780272635000,-500.0,0.00013698,2]
[423644322,1780272635000,-500.0,0.00013698,2]
[423644321,1780272635000,-500.0,0.00013698,2]
[423644323,1780272635000,-500.0,0.00013698,2]
[423644327,1780272635000,-500.0,0.00013698,2]
[423644328,1780272635000,-500.0,0.00013698,2]
[423644324,1780272635000,-500.0,0.00013698,2]
[423644311,1780272635000,-500.0,0.00013698,2]
[423644320,1780272635000,-500.0,0.00013698,2]
[423644312,1780272635000,-500.0,0.00013698,2]
[423644299,1780272635000,-500.0,0.00013698,2]
[423644308,1780272635000,-500.0,0.00013698,2]
[423644326,1780272635000,-500.0,0.00013698,2]
[423644293,1780272635000,-500.0,0.00013698,2]
[423644294,1780272635000,-500.0,0.00013698,2]
[423644296,1780272635000,-500.0,0.00013698,2]
[423644295,1780272635000,-500.0,0.00013698,2]
[423644297,1780272635000,-500.0,0.00013698,2]
[423644301,1780272635000,-500.0,0.00013698,2]
[423644309,1780272635000,-500.0,0.00013698,2]
[423644303,1780272635000,-500.0,0.00013698,2]
[423644300,1780272635000,-500.0,0.00013698,2]
[423644302,1780272635000,-500.0,0.00013698,2]
[423644304,1780272635000,-500.0,0.00013698,2]
[423644305,1780272635000,-500.0,0.00013698,2]
[423644306,1780272635000,-500.0,0.00013698,2]
[423644307,1780272635000,-500.0,0.00013698,2]
[423644310,1780272635000,-553.36280109,0.00013698,2]
[423644298,1780272635000,-500.0,0.00013698,2]
[423644329,1780272635000,-524.73,0.00013698,2]
[423644359,1780272635000,-500.0,0.00013698,2]
[423644331,1780272635000,-500.0,0.00013698,2]
[423644353,1780272635000,-500.0,0.00013698,2]
[423644351,1780272635000,-500.0,0.00013698,2]
[423644354,1780272635000,-500.0,0.00013698,2]
[423644358,1780272635000,-500.0,0.00013698,2]
[423644356,1780272635000,-500.0,0.00013698,2]
[423644357,1780272635000,-500.0,0.00013698,2]
[423644366,1780272635000,-500.0,0.00013698,2]
[423644361,1780272635000,-500.0,0.00013698,2]
[423644360,1780272635000,-500.0,0.00013698,2]
[423644362,1780272635000,-174.18899724,0.00013698,2]
[423644363,1780272635000,-500.0,0.00013698,2]
[423644365,1780272635000,-500.0,0.00013698,2]
[423644367,1780272635000,-1989.08,0.00013698,2]
[423644364,1780272635000,-500.0,0.00013698,2]
[423644334,1780272635000,-500.0,0.00013698,2]
[423644352,1780272635000,-500.0,0.00013698,2]
[423644350,1780272635000,-500.0,0.00013698,2]
[423644355,1780272635000,-500.0,0.00013698,2]
[423644347,1780272635000,-500.0,0.00013698,2]
[423644346,1780272635000,-500.0,0.00013698,2]
[423644333,1780272635000,-500.0,0.00013698,2]
[423644332,1780272635000,-500.0,0.00013698,2]
[423644335,1780272635000,-500.0,0.00013698,2]
[423644330,1780272635000,-500.0,0.00013698,2]
[423644336,1780272635000,-500.0,0.00013698,2]
[423644337,1780272635000,-500.0,0.00013698,2]
[423644341,1780272635000,-500.0,0.00013698,2]
[423644338,1780272635000,-500.0,0.00013698,2]
[423644340,1780272635000,-500.0,0.00013698,2]
[423644342,1780272635000,-500.0,0.00013698,2]
[423644339,1780272635000,-500.0,0.00013698,2]
[423644344,1780272635000,-500.0,0.00013698,2]
[423644349,1780272635000,-500.0,0.00013698,2]
[423644345,1780272635000,-500.0,0.00013698,2]
[423644348,1780272635000,-500.0,0.00013698,2]
[423644343,1780272635000,-500.0,0.00013698,2]
[423644389,1780272636000,-321.46293792,0.00013698,2]
[423644392,1780272636000,-571.63,0.00013698,2]
[423644391,1780272636000,-571.63,0.00013698,2]
[423644390,1780272636000,-571.63,0.00013698,2]
[423644393,1780272636000,-571.63,0.00013698,2]
[423644396,1780272636000,-571.63,0.00013698,2]
[423644395,1780272636000,-571.63,0.00013698,2]
[423644394,1780272636000,-571.63,0.00013698,2]
[423644407,1780272636000,-500.0,0.00013698,2]
[423644399,1780272636000,-323.59183621,0.00013698,2]
[423644398,1780272636000,-248.03816379,0.00013698,2]
[423644401,1780272636000,-571.63,0.00013698,2]
[423644400,1780272636000,-571.63,0.00013698,2]
[423644403,1780272636000,-571.63,0.00013698,2]
[423644404,1780272636000,-500.0,0.00013698,2]
[423644402,1780272636000,-571.63,0.00013698,2]
[423644385,1780272636000,-500.0,0.00013698,2]
[423644397,1780272636000,-571.63,0.00013698,2]
[423644388,1780272636000,-500.0,0.00013698,2]
[423644368,1780272636000,-1989.08,0.00013698,2]
[423644387,1780272636000,-500.0,0.00013698,2]
[423644369,1780272636000,-1989.08,0.00013698,2]
[423644406,1780272636000,-500.0,0.00013698,2]
[423644371,1780272636000,-1989.08,0.00013698,2]
[423644370,1780272636000,-1989.08,0.00013698,2]
[423644372,1780272636000,-1989.08,0.00013698,2]
[423644374,1780272636000,-1989.08,0.00013698,2]
[423644379,1780272636000,-1989.08,0.00013698,2]
[423644375,1780272636000,-1989.08,0.00013698,2]
[423644376,1780272636000,-1989.08,0.00013698,2]
[423644373,1780272636000,-1989.08,0.00013698,2]
[423644378,1780272636000,-1989.08,0.00013698,2]
[423644377,1780272636000,-1989.08,0.00013698,2]
[423644381,1780272636000,-311.16697579,0.00013698,2]
[423644380,1780272636000,-500.0,0.00013698,2]
[423644382,1780272636000,-505.37675136,0.00013698,2]
[423644384,1780272636000,-500.0,0.00013698,2]
[423644383,1780272636000,-202.78843615,0.00013698,2]
[423644386,1780272636000,-500.0,0.00013698,2]
[423644408,1780272636000,-500.0,0.00013698,2]
[423644405,1780272636000,-501.20372086,0.00013698,2]
[423644411,1780272636000,-500.0,0.00013698,2]
[423644431,1780272636000,-500.0,0.00013698,2]
[423644432,1780272636000,-500.0,0.00013698,2]
[423644433,1780272636000,-500.0,0.00013698,2]
[423644435,1780272636000,-500.0,0.00013698,2]
[423644436,1780272636000,-500.0,0.00013698,2]
[423644437,1780272636000,-500.0,0.00013698,2]
[423644440,1780272636000,-500.0,0.00013698,2]
[423644438,1780272636000,-500.0,0.00013698,2]
[423644434,1780272636000,-500.0,0.00013698,2]
[423644439,1780272636000,-500.0,0.00013698,2]
[423644442,1780272636000,-500.0,0.00013698,2]
[423644444,1780272636000,-500.0,0.00013698,2]
[423644445,1780272636000,-500.0,0.00013698,2]
[423644448,1780272636000,-500.0,0.00013698,2]
[423644447,1780272636000,-500.0,0.00013698,2]
[423644449,1780272636000,-500.0,0.00013698,2]
[423644446,1780272636000,-500.0,0.00013698,2]
[423644409,1780272636000,-500.0,0.00013698,2]
[423644441,1780272636000,-500.0,0.00013698,2]
[423644430,1780272636000,-500.0,0.00013698,2]
[423644443,1780272636000,-500.0,0.00013698,2]
[423644424,1780272636000,-500.0,0.00013698,2]
[423644429,1780272636000,-245.62717302,0.00013698,2]
[423644413,1780272636000,-500.0,0.00013698,2]
[423644412,1780272636000,-500.0,0.00013698,2]
[423644414,1780272636000,-500.0,0.00013698,2]
[423644416,1780272636000,-500.0,0.00013698,2]
[423644415,1780272636000,-500.0,0.00013698,2]
[423644419,1780272636000,-500.0,0.00013698,2]
[423644418,1780272636000,-500.0,0.00013698,2]
[423644417,1780272636000,-161.8469673,0.00013698,2]
[423644410,1780272636000,-500.0,0.00013698,2]
[423644425,1780272636000,-500.0,0.00013698,2]
[423644428,1780272636000,-500.0,0.00013698,2]
[423644427,1780272636000,-500.0,0.00013698,2]
[423644421,1780272636000,-500.0,0.00013698,2]
[423644423,1780272636000,-500.0,0.00013698,2]
[423644422,1780272636000,-500.0,0.00013698,2]
[423644426,1780272636000,-500.0,0.00013698,2]
[423644420,1780272636000,-500.0,0.00013698,2]
[423644479,1780272637000,-500.0,0.00013698,2]
[423644475,1780272637000,-500.0,0.00013698,2]
[423644477,1780272637000,-500.0,0.00013698,2]
[423644474,1780272637000,-500.0,0.00013698,2]
[423644476,1780272637000,-500.0,0.00013698,2]
[423644478,1780272637000,-500.0,0.00013698,2]
[423644472,1780272637000,-500.0,0.00013698,2]
[423644473,1780272637000,-500.0,0.00013698,2]
[423644480,1780272637000,-500.0,0.00013698,2]
[423644489,1780272637000,-500.0,0.00013698,2]
[423644482,1780272637000,-500.0,0.00013698,2]
[423644483,1780272637000,-500.0,0.00013698,2]
[423644484,1780272637000,-500.0,0.00013698,2]
[423644485,1780272637000,-500.0,0.00013698,2]
[423644486,1780272637000,-500.0,0.00013698,2]
[423644487,1780272637000,-500.0,0.00013698,2]
[423644488,1780272637000,-500.0,0.00013698,2]
[423644490,1780272637000,-500.0,0.00013698,2]
[423644481,1780272637000,-500.0,0.00013698,2]
[423644468,1780272637000,-500.0,0.00013698,2]
[423644450,1780272637000,-500.0,0.00013698,2]
[423644470,1780272637000,-436.21958605,0.00013698,2]
[423644494,1780272637000,-500.0,0.00013698,2]
[423644451,1780272637000,-196.77646155,0.00013698,2]
[423644453,1780272637000,-500.0,0.00013698,2]
[423644452,1780272637000,-500.0,0.00013698,2]
[423644455,1780272637000,-216.73250781,0.00013698,2]
[423644454,1780272637000,-500.0,0.00013698,2]
[423644457,1780272637000,-500.0,0.00013698,2]
[423644461,1780272637000,-500.0,0.00013698,2]
[423644456,1780272637000,-500.0,0.00013698,2]
[423644459,1780272637000,-500.0,0.00013698,2]
[423644460,1780272637000,-500.0,0.00013698,2]
[423644458,1780272637000,-500.0,0.00013698,2]
[423644463,1780272637000,-500.0,0.00013698,2]
[423644462,1780272637000,-500.0,0.00013698,2]
[423644466,1780272637000,-500.0,0.00013698,2]
[423644469,1780272637000,-500.0,0.00013698,2]
[423644467,1780272637000,-500.0,0.00013698,2]
[423644465,1780272637000,-500.0,0.00013698,2]
[423644471,1780272637000,-500.0,0.00013698,2]
[423644464,1780272637000,-500.0,0.00013698,2]
[423644493,1780272637000,-500.0,0.00013698,2]
[423644531,1780272637000,-727.79,0.00013699,2]
[423644492,1780272637000,-500.0,0.00013698,2]
[423644518,1780272637000,-2500.0,0.00013699,2]
[423644520,1780272637000,-151.0,0.00013699,2]
[423644521,1780272637000,-151.0,0.00013699,2]
[423644522,1780272637000,-151.0,0.00013699,2]
[423644524,1780272637000,-151.0,0.00013699,2]
[423644523,1780272637000,-151.0,0.00013699,2]
[423644519,1780272637000,-151.0,0.00013699,2]
[423644525,1780272637000,-151.0,0.00013699,2]
[423644517,1780272637000,-166.66,0.00013699,2]
[423644528,1780272637000,-151.0,0.00013699,2]
[423644530,1780272637000,-200.0,0.00013699,2]
[423644527,1780272637000,-151.0,0.00013699,2]
[423644526,1780272637000,-151.0,0.00013699,2]
[423644532,1780272637000,-1767.10407943,0.00013699,2]
[423644534,1780272637000,-1767.10407943,0.00013699,2]
[423644535,1780272637000,-1767.10407943,0.00013699,2]
[423644533,1780272637000,-1767.10407943,0.00013699,2]
[423644491,1780272637000,-500.0,0.00013698,2]
[423644529,1780272637000,-162.917968,0.00013699,2]
[423644516,1780272637000,-555.49,0.00013698,2]
[423644536,1780272637000,-1767.10407943,0.00013699,2]
[423644515,1780272637000,-555.49,0.00013698,2]
[423644509,1780272637000,-555.49,0.00013698,2]
[423644497,1780272637000,-500.0,0.00013698,2]
[423644495,1780272637000,-500.0,0.00013698,2]
[423644498,1780272637000,-500.0,0.00013698,2]
[423644503,1780272637000,-171.0,0.00013698,2]
[423644499,1780272637000,-555.49,0.00013698,2]
[423644500,1780272637000,-555.49,0.00013698,2]
[423644501,1780272637000,-555.49,0.00013698,2]
[423644502,1780272637000,-555.49,0.00013698,2]
[423644496,1780272637000,-500.0,0.00013698,2]
[423644507,1780272637000,-174.62473346,0.00013698,2]
[423644506,1780272637000,-171.0,0.00013698,2]
[423644514,1780272637000,-555.49,0.00013698,2]
[423644511,1780272637000,-555.49,0.00013698,2]
[423644512,1780272637000,-555.49,0.00013698,2]
[423644513,1780272637000,-555.49,0.00013698,2]
[423644508,1780272637000,-555.49,0.00013698,2]
[423644504,1780272637000,-171.0,0.00013698,2]
[423644505,1780272637000,-171.0,0.00013698,2]
[423644510,1780272637000,-555.49,0.00013698,2]
[423644560,1780272638000,-1767.10407943,0.00013699,2]
[423644562,1780272638000,-1767.10407943,0.00013699,2]
[423644563,1780272638000,-1767.10407943,0.00013699,2]
[423644561,1780272638000,-1767.10407943,0.00013699,2]
[423644564,1780272638000,-1767.10407943,0.00013699,2]
[423644567,1780272638000,-1767.10407943,0.00013699,2]
[423644566,1780272638000,-1767.10407943,0.00013699,2]
[423644568,1780272638000,-1767.10407943,0.00013699,2]
[423644572,1780272638000,-1767.10407943,0.00013699,2]
[423644569,1780272638000,-1767.10407943,0.00013699,2]
[423644570,1780272638000,-1767.10407943,0.00013699,2]
[423644571,1780272638000,-1767.10407943,0.00013699,2]
[423644573,1780272638000,-1767.10407943,0.00013699,2]
[423644576,1780272638000,-1767.10407943,0.00013699,2]
[423644577,1780272638000,-1767.10407943,0.00013699,2]
[423644574,1780272638000,-1767.10407943,0.00013699,2]
[423644557,1780272638000,-1767.10407943,0.00013699,2]
[423644579,1780272638000,-1767.10407943,0.00013699,2]
[423644565,1780272638000,-1767.10407943,0.00013699,2]
[423644559,1780272638000,-1767.10407943,0.00013699,2]
[423644547,1780272638000,-1767.10407943,0.00013699,2]
[423644558,1780272638000,-1767.10407943,0.00013699,2]
[423644575,1780272638000,-1767.10407943,0.00013699,2]
[423644539,1780272638000,-1767.10407943,0.00013699,2]
[423644537,1780272638000,-1767.10407943,0.00013699,2]
[423644538,1780272638000,-1767.10407943,0.00013699,2]
[423644541,1780272638000,-1767.10407943,0.00013699,2]
[423644542,1780272638000,-1767.10407943,0.00013699,2]
[423644540,1780272638000,-1767.10407943,0.00013699,2]
[423644543,1780272638000,-1767.10407943,0.00013699,2]